bitfinex/quotes_ETHUSD_20240702
["timestamp","ask_amount","ask_price","bid_price","bid_amount"]
[1719961810181,2.3756,3430.4,3429.3,0.92457684]
[1719961810399,2.3756,3430.4,3429.5,0.955]
[1719961810610,2.3756,3430.2,3429.7,0.955]
[1719961811091,0.07059111,3430.1,3429.7,0.955]
[1719961811451,2.3756,3430.0,3429.0,0.146]
[1719961811685,2.44613949,3430.0,3429.0,0.146]
[1719961811999,2.44613949,3430.0,3429.4,0.955]
[1719961812160,2.44613949,3430.0,3429.0,0.146]
[1719961812358,2.44613949,3430.0,3429.3,0.955]
[1719961812661,2.64467586,3429.9,3429.3,0.955]
[1719961812865,0.07031505,3429.8,3429.3,0.955]
[1719961813271,0.07031505,3429.8,3429.0,0.146]
[1719961813474,0.07031505,3429.8,3429.3,0.955]
[1719961814173,0.07031505,3429.8,3429.0,0.146]
[1719961814174,2.3871,3429.7,3429.0,0.146]
[1719961814356,2.65974909,3429.6,3429.0,1.101]
[1719961814694,2.72986339,3429.6,3429.0,1.101]
[1719961816491,2.4572143,3429.6,3429.0,1.101]
[1719961816796,2.4572143,3429.6,3429.2,0.955]
[1719961818493,2.4572143,3429.6,3429.0,0.146]
[1719961820989,4.2132143,3429.6,3429.0,0.146]
[1719961821199,2.465,3429.5,3429.0,0.146]
[1719961821398,0.42911143,3429.4,3429.0,0.146]
[1719961821632,2.465,3429.3,3429.0,0.146]
[1719961822076,1.756,3429.6,3429.0,0.146]
[1719961822077,2.465,3429.1,3429.0,0.146]
[1719961822265,2.53492347,3429.1,3429.0,0.146]
[1719961826198,0.06992347,3429.1,3429.0,0.146]
[1719961826705,3.0,3429.5,3429.0,0.146]
[1719961826907,0.06983979,3429.4,3429.2,0.955]
[1719961827195,0.06983979,3429.4,3429.0,1.101]
[1719961831792,0.10172498,3429.4,3429.0,1.101]
[1719961833801,8.7484,3429.3,3429.0,1.101]
[1719961834233,0.10172961,3429.2,3429.0,1.101]
[1719961834606,8.7484,3429.3,3429.0,1.101]
[1719961834812,0.10172018,3429.1,3429.0,1.101]
[1719961835034,8.7484,3429.3,3429.0,1.101]
[1719961835207,0.10172018,3429.1,3429.0,1.101]
[1719961835837,8.7484,3429.3,3429.0,1.101]
[1719961836034,0.10172018,3429.1,3429.0,1.101]
[1719961836515,8.7484,3429.3,3429.0,1.101]
[1719961836697,0.10172961,3429.2,3429.0,1.101]
[1719961836893,8.7484,3429.3,3429.0,1.101]
[1719961837112,0.10172961,3429.2,3429.0,1.101]
[1719961837336,8.7484,3429.3,3429.0,1.101]
[1719961837502,0.10172961,3429.2,3429.0,1.101]
[1719961837703,8.7484,3429.3,3429.0,1.101]
[1719961838012,0.10172961,3429.2,3429.0,1.101]
[1719961838399,8.7484,3429.3,3429.0,1.101]
[1719961838603,0.10172018,3429.1,3429.0,1.101]
[1719961838807,8.7484,3429.3,3429.0,1.101]
[1719961839015,0.10172018,3429.1,3429.0,1.101]
[1719961839500,8.7484,3429.3,3429.0,1.101]
[1719961839699,0.10172961,3429.2,3429.0,1.101]
[1719961839900,8.7484,3429.3,3429.0,1.101]
[1719961840134,0.10172961,3429.2,3429.0,1.101]
[1719961840352,8.7484,3429.3,3429.0,1.101]
[1719961840570,0.10172961,3429.2,3429.0,1.101]
[1719961840906,8.7484,3429.3,3429.0,1.101]
[1719961841203,0.10172961,3429.2,3429.0,1.101]
[1719961841640,8.7484,3429.3,3429.0,1.101]
[1719961841813,0.10172018,3429.1,3429.0,1.101]
[1719961842013,8.7484,3429.3,3429.0,1.101]
[1719961842227,0.10172018,3429.1,3429.0,1.101]
[1719961842434,10.226799,3429.3,3429.0,0.146]
[1719961842600,0.10172018,3429.1,3429.0,0.146]
[1719961842805,10.226799,3429.3,3429.0,0.146]
[1719961842806,2.2553,3429.2,3429.0,0.146]
[1719961843025,0.10172254,3429.1,3429.0,0.146]
[1719961855956,8.7484,3429.3,3429.0,0.146]
[1719961856165,0.10166405,3429.2,3429.0,1.101]
[1719961856536,8.7484,3429.3,3429.0,1.101]
[1719961856739,0.10167576,3429.2,3429.0,1.101]
[1719961856969,8.7484,3429.3,3429.0,1.101]
[1719961857143,0.10166633,3429.1,3429.0,1.101]
[1719961857348,8.7484,3429.3,3429.0,1.101]
[1719961857658,1.29567791,3429.2,3429.0,1.101]
[1719961857865,0.10167576,3429.2,3429.0,1.101]
[1719961858169,8.7484,3429.3,3429.0,1.101]
[1719961858474,1.19400032,3429.2,3429.0,1.101]
[1719961858676,8.7484,3429.3,3429.0,1.101]
[1719961858978,1.19400014,3429.2,3429.0,1.101]
[1719961859147,0.10168044,3429.2,3429.0,1.101]
[1719961859354,8.7484,3429.3,3429.0,1.101]
[1719961859536,1.29565517,3429.2,3429.0,1.101]
[1719961859736,0.10168044,3429.2,3429.0,1.101]
[1719961859936,8.7484,3429.3,3429.0,1.101]
[1719961860229,1.29566849,3429.2,3429.0,1.101]
[1719961860462,0.10168044,3429.2,3429.0,1.101]
[1719961860737,8.7484,3429.3,3429.0,1.101]
[1719961861052,1.29566869,3429.2,3429.0,1.101]
[1719961861235,0.10168044,3429.2,3429.0,1.101]
[1719961861435,1.19399112,3429.1,3429.0,1.101]
[1719961861638,0.10167102,3429.1,3429.0,1.101]
[1719961861844,1.19399912,3429.1,3429.0,1.101]
[1719961862040,1.29570056,3429.1,3429.0,0.146]
[1719961865171,1.2956939,3429.1,3429.0,0.146]
[1719961868281,0.10170144,3429.1,3428.8,0.955]
[1719961868467,1.19398548,3429.2,3428.8,0.955]
[1719961868671,1.29568729,3429.1,3428.8,0.955]
[1719961868878,0.10170144,3429.1,3428.8,0.955]
[1719961869186,8.7484,3429.3,3428.8,0.955]
[1719961869386,0.10169202,3429.0,3428.8,0.955]
[1719961869591,8.7484,3429.3,3428.8,0.955]
[1719961869790,0.10168259,3428.9,3428.8,0.955]
[1719961870282,8.7484,3429.3,3428.8,0.955]
[1719961870458,1.29569695,3429.2,3428.8,0.955]
[1719961870665,1.19398608,3429.1,3428.8,0.955]
[1719961870986,8.7484,3429.3,3428.8,0.955]
[1719961870987,0.10169202,3429.0,3428.8,0.955]
[1719961871350,8.7484,3429.3,3428.8,0.955]
[1719961871666,1.29569565,3429.2,3428.8,0.955]
[1719961871876,1.19398478,3429.1,3428.8,0.955]
[1719961872282,0.10169202,3429.0,3428.8,0.955]
[1719961872681,8.7484,3429.3,3428.8,0.955]
[1719961872877,1.19398592,3429.2,3428.8,0.955]
[1719961873080,1.19398592,3429.1,3428.8,0.955]
[1719961873280,1.1940337,3429.0,3428.8,0.955]
[1719961873605,0.10169202,3429.0,3428.8,0.955]
[1719961874106,0.10168259,3428.9,3428.8,0.955]
[1719961874807,8.7484,3429.3,3428.8,0.955]
[1719961874981,0.10168259,3428.9,3428.8,0.955]
[1719961875175,9.86692,3429.3,3428.8,0.955]
[1719961875176,8.7484,3429.3,3428.8,0.955]
[1719961875508,1.19403278,3429.2,3428.8,0.955]
[1719961875705,1.19403278,3429.1,3428.8,0.955]
[1719961875911,1.19403278,3429.0,3428.8,0.955]
[1719961876095,0.10170144,3429.1,3428.8,0.955]
[1719961876296,0.10168259,3428.9,3428.8,0.955]
[1719961876501,8.7484,3429.3,3428.8,0.955]
[1719961876836,1.19403324,3429.2,3428.8,0.955]
[1719961876989,1.19403324,3429.1,3428.8,0.955]
[1719961877192,1.19403324,3429.0,3428.8,0.955]
[1719961877390,0.10167226,3429.0,3428.8,0.955]
[1719961877810,8.7484,3429.3,3428.8,0.955]
[1719961878025,1.19398496,3429.2,3428.8,0.955]
[1719961878191,1.19398425,3429.1,3428.8,0.955]
[1719961878629,0.10167226,3429.0,3428.8,0.955]
[1719961879195,8.7484,3429.3,3428.8,0.955]
[1719961879531,1.1939852,3429.2,3428.8,0.955]
[1719961879832,1.29566689,3429.1,3428.8,0.955]
[1719961880039,0.10168169,3429.1,3428.8,0.955]
[1719961880326,8.7484,3429.3,3428.8,0.955]
[1719961880638,1.2956759,3429.2,3428.8,0.955]
[1719961880938,1.19398479,3429.1,3428.8,0.955]
[1719961881098,0.10167226,3429.0,3428.8,0.955]
[1719961881521,8.7484,3429.3,3428.9,2.35912803]
[1719961881693,8.7484,3429.3,3429.2,0.955]
[1719961882030,8.7484,3429.3,3429.2,3.2558]
[1719961893033,8.7484,3429.3,3429.2,0.955]
[1719961893576,8.7484,3429.3,3428.9,2.291]
[1719961893577,8.85024512,3429.3,3428.9,2.291]
[1719961893869,8.85024512,3429.3,3429.2,0.955]
[1719961898235,8.85024512,3429.3,3428.7,2.436]
[1719961898563,8.85024512,3429.3,3429.2,0.955]
[1719961902158,11.26264512,3429.3,3428.5,2.436]
[1719961902368,11.26264512,3429.3,3428.8,0.955]
[1719961904483,11.26264512,3429.3,3429.0,0.955]
[1719961904878,12.38890963,3429.3,3429.0,0.955]
[1719961906989,12.38890963,3429.3,3429.2,0.955]
[1719961907161,11.26264512,3429.3,3429.2,0.955]
[1719961907361,8.85024512,3429.3,3429.2,0.955]
[1719961929084,8.85024512,3429.3,3428.7,2.9165]
[1719961929085,8.85024512,3429.3,3428.7,0.05832003]
[1719961929303,9.73526963,3429.3,3428.2,0.61173617]
[1719961929612,9.73526963,3429.3,3428.8,0.955]
[1719961929613,8.85024512,3429.3,3428.8,0.955]
[1719961931717,8.85024512,3429.3,3429.0,0.955]
[1719961932714,0.1009787,3429.2,3428.8,0.955]
[1719961932922,0.1009787,3429.2,3428.0,0.61173617]
[1719961933106,8.7484,3429.3,3428.6,0.955]
[1719961933409,0.10082178,3429.2,3428.6,0.955]
[1719961934511,0.10082178,3429.2,3428.5,0.955]
[1719961934708,0.10082178,3429.2,3428.7,0.955]
[1719961935481,0.10082178,3429.2,3428.0,3.0]
[1719961935678,0.10082178,3429.2,3428.7,0.955]
[1719961935679,0.88492218,3429.1,3428.7,0.955]
[1719961936029,0.10078209,3429.0,3428.7,0.955]
[1719961948516,0.10078209,3429.0,3428.9,0.955]
[1719961953749,0.10078209,3429.0,3428.4,2.3184]
[1719961954059,0.10078209,3429.0,3428.9,0.955]
[1719961963794,0.10078209,3429.0,3428.9,3.2454]
[1719961964139,0.10078209,3429.0,3428.9,6.48632]
[1719961970029,0.10078209,3429.0,3428.9,9.4027]
[1719961985204,0.10078209,3429.0,3428.9,6.1573]
[1719961985406,0.10078209,3429.0,3428.9,7.1123]
[1719961987844,0.10078209,3429.0,3428.9,3.24092]
[1719961988059,0.10078209,3429.0,3428.9,4.19592]
[1719961988852,0.10078209,3429.0,3428.9,0.955]
[1719962001778,0.10078209,3429.0,3428.9,3.87138]
[1719962004569,0.10078209,3429.0,3428.9,9.38398207]
[1719962004763,0.10078209,3429.0,3428.9,11.85478207]
[1719962006267,1.2564,3429.1,3429.0,5.8326]
[1719962006576,1.2564,3429.1,3429.0,10.00024929]
[1719962006778,2.3557,3430.2,3429.5,2.91583]
[1719962006973,2.3557,3430.2,3430.1,0.955]
[1719962007717,2.3557,3430.6,3430.1,0.955]
[1719962007998,2.3557,3430.6,3430.5,0.955]
[1719962009201,3.0,3431.1,3430.5,0.955]
[1719962009505,3.0,3431.1,3431.0,0.955]
[1719962009975,2.4967,3431.2,3431.0,0.955]
[1719962010176,2.74637,3431.2,3431.0,0.955]
[1719962010499,3.0,3431.1,3431.0,0.955]
[1719962011770,2.2671,3431.1,3431.0,0.955]
[1719962013663,2.4202,3431.7,3431.0,0.955]
[1719962013863,0.08734584,3431.6,3431.3,0.955]
[1719962014065,0.72615458,3431.5,3431.3,0.955]
[1719962014301,0.08732701,3431.4,3431.3,0.955]
[1719962018405,2.4202,3431.7,3431.3,0.955]
[1719962018565,2.4202,3431.7,3431.6,0.955]
[1719962021485,2.4202,3431.7,3431.1,0.955]
[1719962021486,2.97058,3431.7,3431.1,0.955]
[1719962021680,2.97058,3431.7,3430.7,2.91485]
[1719962021979,2.97058,3431.7,3431.1,0.955]
[1719962025081,2.97058,3431.7,3430.3,5.26048]
[1719962025281,2.2588,3431.5,3430.7,0.955]
[1719962028687,2.54599017,3431.4,3430.3,0.5647518]
[1719962028891,2.54599017,3431.4,3430.7,0.955]
[1719962029218,2.4585,3431.2,3430.7,0.955]
[1719962029731,0.08740345,3431.1,3430.7,0.955]
[1719962032828,2.2998,3431.0,3430.7,0.955]
[1719962033231,0.08738462,3430.9,3430.7,0.955]
[1719962033826,0.08738462,3430.9,3430.3,0.5647518]
[1719962033985,0.08738462,3430.9,3430.1,0.387038]
[1719962033986,0.08738462,3430.9,3430.5,0.955]
[1719962034414,0.08738462,3430.9,3430.1,0.387038]
[1719962034729,0.08738462,3430.9,3430.4,0.955]
[1719962035040,2.3267,3430.8,3430.4,0.955]
[1719962035328,2.4140518,3430.8,3430.4,0.955]
[1719962035639,2.4140518,3430.8,3429.8,2.3912]
[1719962035930,2.4140518,3430.8,3430.2,0.955]
[1719962040253,2.4140518,3430.8,3429.6,2.3912]
[1719962040543,2.4140518,3430.8,3430.0,0.955]
[1719962041303,2.4140518,3430.8,3430.4,0.955]
[1719962044058,2.4140518,3430.8,3430.6,0.955]
[1719962056154,0.0873518,3430.8,3430.6,0.955]
[1719962056352,2.3913,3431.3,3430.7,0.61375]
[1719962056575,2.3913,3431.3,3430.6,0.955]
[1719962056576,0.08597309,3431.2,3430.8,0.955]
[1719962056781,2.3913,3431.3,3430.8,0.955]
[1719962056991,0.08596835,3431.1,3430.8,0.955]
[1719962057194,2.3913,3431.3,3430.8,0.955]
[1719962057402,0.08595893,3431.0,3430.8,0.955]
[1719962057869,0.08595893,3431.0,3430.4,5.1825]
[1719962057870,2.3913,3431.3,3430.7,0.955]
[1719962058049,0.08600313,3430.9,3430.7,0.955]
[1719962058250,2.3913,3431.3,3430.7,0.955]
[1719962058448,0.08599372,3430.8,3430.7,0.955]
[1719962058658,2.3913,3431.3,3430.7,0.955]
[1719962058864,2.3913,3431.3,3430.9,0.955]
[1719962059475,2.3913,3431.3,3431.1,0.955]
[1719962072799,2.3913,3431.3,3430.4,5.1825]
[1719962073003,2.3913,3431.3,3431.0,0.955]
[1719962073793,0.08042253,3431.2,3431.0,0.955]
[1719962074003,2.3913,3431.3,3431.0,0.955]
[1719962074300,0.08041312,3431.1,3431.0,0.955]
[1719962074595,2.3913,3431.3,3431.0,0.955]
[1719962074791,0.08041312,3431.1,3431.0,0.955]
[1719962075005,2.3913,3431.3,3431.0,0.955]
[1719962075290,0.08041312,3431.1,3431.0,0.955]
[1719962075754,2.3913,3431.3,3431.0,0.955]
[1719962076205,0.08042253,3431.2,3431.0,0.955]
[1719962076417,2.3913,3431.3,3431.0,0.955]
[1719962077126,0.08042253,3431.2,3431.0,0.955]
[1719962077410,2.3913,3431.3,3431.0,0.955]
[1719962077612,0.08042481,3431.1,3431.0,0.955]
[1719962077817,2.3913,3431.3,3431.0,0.955]
[1719962077995,0.08042481,3431.1,3431.0,0.955]
[1719962078174,2.3913,3431.3,3431.0,0.955]
[1719962078374,0.08043423,3431.2,3431.0,0.955]
[1719962078575,2.3913,3431.3,3431.0,0.955]
[1719962078772,0.08044461,3431.2,3431.0,0.955]
[1719962078989,2.3913,3431.3,3431.0,0.955]
[1719962079193,0.08044461,3431.2,3431.0,0.955]
[1719962079394,2.3913,3431.3,3431.0,0.955]
[1719962079697,0.08044461,3431.2,3431.0,0.955]
[1719962079892,2.3913,3431.3,3431.0,0.955]
[1719962080106,0.08043519,3431.1,3431.0,0.955]
[1719962080293,2.3913,3431.3,3431.0,0.955]
[1719962080499,0.08043519,3431.1,3431.0,0.955]
[1719962080697,2.3913,3431.3,3431.0,0.955]
[1719962081225,0.08044461,3431.2,3431.0,0.955]
[1719962081522,2.3913,3431.3,3431.0,0.955]
[1719962081683,0.08043519,3431.1,3431.0,0.955]
[1719962081886,2.3913,3431.3,3431.0,0.955]
[1719962082097,0.08043519,3431.1,3431.0,0.955]
[1719962082318,2.3913,3431.3,3431.0,0.955]
[1719962082549,0.08045389,3431.1,3431.0,0.955]
[1719962082697,2.3913,3431.3,3431.0,0.955]
[1719962082899,0.08045389,3431.1,3431.0,0.955]
[1719962083527,2.3913,3431.3,3431.0,0.955]
[1719962084046,0.08045293,3431.2,3431.0,0.955]
[1719962084219,2.3913,3431.3,3431.0,0.955]
[1719962084424,0.08044351,3431.1,3431.0,0.955]
[1719962084635,2.3913,3431.3,3431.0,0.955]
[1719962084852,0.08044351,3431.1,3431.0,0.955]
[1719962085152,2.3913,3431.3,3431.0,0.955]
[1719962085335,0.08044351,3431.1,3431.0,0.955]
[1719962085945,2.3913,3431.3,3431.0,0.955]
[1719962086145,0.08044351,3431.1,3431.0,0.955]
[1719962086615,2.3913,3431.3,3431.0,0.955]
[1719962086802,0.08044351,3431.1,3431.0,0.955]
[1719962087011,2.3913,3431.3,3431.0,0.955]
[1719962087254,0.08045293,3431.2,3431.0,0.955]
[1719962087755,2.3913,3431.3,3431.0,0.955]
[1719962087917,0.08044351,3431.1,3431.0,0.955]
[1719962088121,2.3913,3431.3,3431.0,0.955]
[1719962088314,0.08044351,3431.1,3431.0,0.955]
[1719962088519,2.3913,3431.3,3431.0,0.955]
[1719962089005,0.08045293,3431.2,3431.0,0.955]
[1719962089212,2.3913,3431.3,3431.0,0.955]
[1719962089410,0.08045293,3431.2,3431.0,0.955]
[1719962089641,2.3913,3431.3,3431.0,0.955]
[1719962089823,0.08044351,3431.1,3431.0,0.955]
[1719962090132,2.3913,3431.3,3431.0,0.955]
[1719962090316,0.08043884,3431.1,3431.0,0.955]
[1719962090522,2.3913,3431.3,3431.0,0.955]
[1719962090733,0.08043884,3431.1,3431.0,0.955]
[1719962090912,2.3913,3431.3,3431.0,0.955]
[1719962091113,0.08043884,3431.1,3431.0,0.955]
[1719962091339,2.3913,3431.3,3431.0,0.955]
[1719962091513,0.08043884,3431.1,3431.0,0.955]
[1719962091738,2.3913,3431.3,3431.0,0.955]
[1719962091940,0.08043884,3431.1,3431.0,0.955]
[1719962092127,2.3913,3431.3,3431.0,0.955]
[1719962092329,0.08043884,3431.1,3431.0,0.955]
[1719962092842,2.3913,3431.3,3431.0,0.955]
[1719962093009,0.08043884,3431.1,3431.0,0.955]
[1719962093214,2.3913,3431.3,3431.0,0.955]
[1719962093566,0.08044825,3431.2,3431.0,0.955]
[1719962094065,2.3913,3431.3,3431.0,0.955]
[1719962094427,0.08043884,3431.1,3431.0,0.955]
[1719962094660,2.3913,3431.3,3431.0,0.955]
[1719962094947,0.08043884,3431.1,3431.0,0.955]
[1719962095153,2.3913,3431.3,3431.0,0.955]
[1719962095351,0.08042014,3431.1,3431.0,0.955]
[1719962095516,2.3913,3431.3,3431.0,0.955]
[1719962095715,0.08042014,3431.1,3431.0,0.955]
[1719962095913,2.3913,3431.3,3431.0,0.955]
[1719962096161,0.08042014,3431.1,3431.0,0.955]
[1719962096345,2.3913,3431.3,3431.0,0.955]
[1719962096541,0.07810347,3431.1,3431.0,0.955]
[1719962097061,2.3913,3431.3,3431.0,0.955]
[1719962097215,0.07810347,3431.1,3431.0,0.955]
[1719962097420,2.3913,3431.3,3431.0,0.955]
[1719962097669,0.07811288,3431.2,3431.0,0.955]
[1719962097981,2.3913,3431.3,3431.0,0.955]
[1719962098173,0.07810347,3431.1,3431.0,0.955]
[1719962098407,2.3913,3431.3,3431.0,0.955]
[1719962098544,0.07810347,3431.1,3431.0,0.955]
[1719962098737,2.3913,3431.3,3431.0,0.955]
[1719962098938,0.07810347,3431.1,3431.0,0.955]
[1719962099149,2.3913,3431.3,3431.0,0.955]
[1719962099344,0.07810347,3431.1,3431.0,0.955]
[1719962099665,0.07808242,3431.1,3431.0,0.955]
[1719962099982,2.3913,3431.3,3431.0,0.955]
[1719962100435,0.0771992,3431.2,3431.0,0.955]
[1719962100846,2.3913,3431.3,3431.0,0.955]
[1719962101176,0.07718979,3431.1,3431.0,0.955]
[1719962101984,2.3913,3431.3,3431.0,0.955]
[1719962102288,0.45642365,3431.2,3431.0,0.955]
[1719962102591,0.0771992,3431.2,3431.0,0.955]
[1719962102975,2.3913,3431.3,3431.0,0.955]
[1719962103173,0.07718979,3431.1,3431.0,0.955]
[1719962103361,2.3913,3431.3,3431.0,0.955]
[1719962103564,0.45646248,3431.2,3431.0,0.955]
[1719962103870,0.45646248,3431.2,3430.4,2.2674]
[1719962103871,0.4565353,3431.1,3430.4,2.2674]
[1719962104079,0.4565353,3431.0,3430.7,0.955]
[1719962104387,0.07718271,3431.0,3430.7,0.955]
[1719962104773,2.3913,3431.3,3430.7,0.955]
[1719962104986,3.10583,3431.3,3430.7,0.955]
[1719962105171,0.07720154,3431.2,3430.7,0.955]
[1719962105366,0.53380825,3431.2,3430.7,0.955]
[1719962105566,0.45660671,3431.1,3430.7,0.955]
[1719962105879,0.07718271,3431.0,3430.7,0.955]
[1719962106082,3.10583,3431.3,3430.7,0.955]
[1719962106280,0.07717329,3430.9,3430.7,0.955]
[1719962106479,2.3913,3431.3,3430.7,0.955]
[1719962106682,0.07716387,3430.8,3430.7,0.955]
[1719962106898,2.3913,3431.3,3430.7,0.955]
[1719962107107,0.07716387,3430.8,3430.7,0.955]
[1719962107270,2.3913,3431.3,3430.7,0.955]
[1719962107469,0.07716387,3430.8,3430.7,0.955]
[1719962107671,2.3913,3431.3,3430.7,0.955]
[1719962107987,0.07716387,3430.8,3430.7,0.955]
[1719962108188,2.3913,3431.3,3430.7,0.955]
[1719962108500,0.45655718,3431.2,3430.7,0.955]
[1719962108798,0.45655718,3431.1,3430.7,0.955]
[1719962109193,0.07709382,3431.0,3430.7,0.955]
[1719962109766,2.3913,3431.3,3430.7,0.955]
[1719962110072,0.69568838,3431.2,3430.7,0.955]
[1719962110286,0.45655838,3431.1,3430.7,0.955]
[1719962110502,0.07710324,3431.1,3430.7,0.955]
[1719962110799,0.07710324,3431.1,3430.9,0.955]
[1719962110999,0.07709148,3431.0,3430.9,0.955]
[1719962111413,2.3913,3431.3,3430.9,0.955]
[1719962111716,0.45658948,3431.2,3430.9,0.955]
[1719962112017,0.45658948,3431.1,3430.9,0.955]
[1719962112392,0.07709148,3431.0,3430.9,0.955]
[1719962113443,2.3913,3431.3,3430.9,0.955]
[1719962113618,0.07709148,3431.0,3430.9,0.955]
[1719962113818,0.45657833,3431.2,3430.9,0.955]
[1719962114007,2.3913,3431.3,3430.9,0.955]
[1719962114008,0.0771009,3431.1,3430.9,0.955]
[1719962114337,2.3913,3431.3,3430.9,0.955]
[1719962114546,0.07709148,3431.0,3430.9,0.955]
[1719962114750,2.3913,3431.3,3430.9,0.955]
[1719962114935,0.07709148,3431.0,3430.9,0.955]
[1719962115143,4.754,3431.6,3430.9,0.955]
[1719962115306,0.07710084,3431.0,3430.9,0.955]
[1719962115519,2.990038,3431.5,3430.9,0.955]
[1719962115520,2.4596,3431.5,3430.9,0.955]
[1719962115726,0.07710084,3431.0,3430.9,0.955]
[1719962116248,2.4596,3431.5,3430.9,0.955]
[1719962116437,0.07711721,3431.0,3430.9,0.955]
[1719962116622,5.4596,3431.5,3430.9,0.955]
[1719962116829,0.85355287,3431.4,3430.9,0.955]
[1719962122311,0.85355287,3431.4,3430.4,2.2674]
[1719962122647,2.3669,3431.2,3430.3,0.955]
[1719962122852,8.82122662,3431.1,3430.3,0.955]
[1719962123038,2.3669,3430.9,3430.1,2.4805]
[1719962123347,0.0770867,3430.8,3430.4,0.955]
[1719962124655,0.0770867,3430.8,3430.6,0.955]
[1719962125545,8.7441,3431.1,3430.6,0.955]
[1719962125856,10.4047398,3431.1,3430.6,0.955]
[1719962126155,0.07699089,3431.0,3430.6,0.955]
[1719962140311,0.07699089,3431.0,3430.8,0.955]
[1719962140669,0.07699089,3431.0,3430.9,2.2605]
[1719962140987,0.07699089,3431.0,3430.9,2.58205]
[1719962162121,0.07699089,3431.0,3430.9,5.49673]
[1719962168588,0.07699089,3431.0,3430.9,8.41141]
[1719962168749,0.07699089,3431.0,3430.9,8.46969911]
[1719962168947,2.3414,3432.3,3431.6,2.2936]
[1719962169169,2.3414,3432.3,3431.9,0.955]
[1719962169784,2.3414,3432.3,3431.9,1.101]
[1719962180302,2.499,3432.0,3431.9,0.146]
[1719962180530,2.499,3432.0,3431.9,1.101]
[1719962180743,2.499,3432.0,3431.9,0.146]
[1719962180744,2.56351962,3432.0,3431.9,0.146]
[1719962180948,2.81987158,3432.0,3431.9,0.146]
[1719962204780,0.14811962,3432.0,3431.9,0.146]
[1719962229439,0.14811962,3432.0,3431.6,0.955]
[1719962229641,0.14811962,3432.0,3431.5,2.4215]
[1719962229813,0.14811962,3432.0,3431.5,0.955]
[1719962234258,0.14811962,3432.0,3431.2,2.3603]
[1719962234259,0.14811962,3432.0,3431.7,0.955]
[1719962239352,0.14811962,3432.0,3431.9,0.955]
[1719962240533,0.14811962,3432.0,3431.7,0.955]
[1719962266360,0.14811962,3432.0,3431.9,0.955]
[1719962275712,0.14811962,3432.0,3431.7,0.955]
[1719962276011,0.14811962,3432.0,3431.4,2.3555]
[1719962276218,0.14811962,3432.0,3431.8,0.955]
[1719962279846,0.14811962,3432.0,3431.4,2.3555]
[1719962280146,0.14811962,3432.0,3431.8,0.955]
[1719962287257,2.4921,3431.9,3430.9,2.3774]
[1719962287462,0.06171313,3431.8,3431.4,0.955]
[1719962287611,0.0836,3432.0,3431.4,0.955]
[1719962287612,2.4921,3431.7,3431.4,0.955]
[1719962287818,0.06165222,3431.6,3430.9,2.3774]
[1719962288128,0.06165222,3431.6,3431.4,0.955]
[1719962291738,0.06165222,3431.6,3430.9,2.67623631]
[1719962291949,2.3631,3431.5,3431.3,0.955]
[1719962292151,2.3631,3431.5,3431.1,0.955]
[1719962292458,2.3631,3431.3,3430.3,2.462]
[1719962292617,0.06150041,3431.2,3430.9,0.955]
[1719962292955,2.3631,3431.3,3430.9,0.955]
[1719962293148,0.061491,3431.1,3430.9,0.955]
[1719962293358,2.3631,3431.3,3430.9,0.955]
[1719962293862,0.06150041,3431.2,3430.9,0.955]
[1719962294022,2.3631,3431.3,3430.9,0.955]
[1719962294352,0.06143362,3431.2,3430.9,0.955]
[1719962294753,2.3631,3431.3,3430.9,0.955]
[1719962295238,0.06134607,3431.2,3430.9,0.955]
[1719962295557,2.3631,3431.3,3430.9,0.955]
[1719962295760,0.06133665,3431.1,3430.9,0.955]
[1719962295936,2.3631,3431.3,3430.9,0.955]
[1719962296439,0.06135178,3431.2,3430.9,0.955]
[1719962296622,2.3631,3431.3,3431.1,0.955]
[1719962296824,0.0613414,3431.2,3430.3,2.462]
[1719962297063,2.3631,3431.3,3431.0,0.955]
[1719962297249,0.0613362,3431.2,3431.0,0.955]
[1719962297447,2.3631,3431.3,3431.0,0.955]
[1719962297634,0.06134658,3431.2,3431.0,0.955]
[1719962297829,2.3631,3431.3,3431.0,0.955]
[1719962298036,0.0613362,3431.2,3431.0,0.955]
[1719962298232,2.3631,3431.3,3431.0,0.955]
[1719962298437,0.0613362,3431.2,3431.0,0.955]
[1719962298741,2.3631,3431.3,3431.0,0.955]
[1719962299249,0.0613362,3431.2,3431.0,0.955]
[1719962299569,2.3631,3431.3,3431.0,0.955]
[1719962299863,0.06076598,3431.2,3431.0,0.955]
[1719962300066,2.3631,3431.3,3431.0,0.955]
[1719962300279,0.06076598,3431.2,3431.0,0.955]
[1719962300584,2.3631,3431.3,3431.0,0.955]
[1719962300924,0.06075559,3431.2,3431.0,0.955]
[1719962301338,2.3631,3431.3,3431.0,0.955]
[1719962301733,0.06076598,3431.2,3431.0,0.955]
[1719962302226,2.3631,3431.3,3431.0,0.955]
[1719962302422,0.06075894,3431.2,3431.0,0.955]